bitfinex-derivatives/quotes_BNBF0:USTF0_20230901
["timestamp","ask_amount","ask_price","bid_price","bid_amount"]
[1693596153125,0.17318023,212.59,212.1,0.86617975]
[1693596153321,0.17318023,212.59,212.07,0.86617975]
[1693596153526,0.17318023,212.59,212.08,0.86617975]
[1693596153727,0.17318023,212.6,212.07,0.86617975]
[1693596153928,0.17318023,212.59,212.08,0.86617975]
[1693596154227,0.17318023,212.58,212.09,0.86617975]
[1693596154428,0.17318023,212.6,212.07,0.86617975]
[1693596154729,0.17318023,212.59,212.08,0.86617975]
[1693596154926,0.17318023,212.59,212.09,0.86617975]
[1693596155122,0.17318023,212.59,212.1,0.86617975]
[1693596155328,0.17318023,212.59,212.11,0.86617975]
[1693596155526,0.17318023,212.59,212.06,0.07669259]
[1693596155724,0.17318023,212.59,212.07,0.86624356]
[1693596155930,0.17318023,212.59,212.08,0.86624356]
[1693596156230,0.17318023,212.58,212.09,0.86624356]
[1693596156421,0.17318023,212.57,212.1,0.86624356]
[1693596156622,0.17318023,212.56,212.11,0.86624356]
[1693596156831,0.17318023,212.55,212.06,0.07669259]
[1693596157025,0.17318023,212.54,212.07,0.86625006]
[1693596157223,0.17318023,212.53,212.08,0.86625006]
[1693596157426,0.17318023,212.52,212.09,0.86625006]
[1693596157627,0.17318023,212.51,212.1,0.86625006]
[1693596157826,0.17318023,212.5,212.11,0.86625006]
[1693596158027,0.17318023,212.49,212.06,0.07669259]
[1693596158229,0.17318023,212.48,212.07,0.86622195]
[1693596158429,0.17318023,212.47,212.07,0.94291454]
[1693596158731,0.17318023,212.46,212.08,0.86622195]
[1693596158930,0.17318023,212.61,212.08,0.86622195]
[1693596159126,0.17318023,212.6,212.08,0.86622195]
[1693596159330,0.17318023,212.61,212.08,0.94291454]
[1693596159525,0.17318023,212.6,212.09,0.86622195]
[1693596159729,0.17318023,212.62,212.08,0.86622195]
[1693596159930,0.17318023,212.61,212.09,0.86622195]
[1693596160230,0.17318023,212.6,212.1,0.86622195]
[1693596160432,0.17318023,212.62,212.08,0.86622195]
[1693596160731,0.17318023,212.61,212.09,0.86622195]
[1693596160922,0.17318023,212.62,212.09,0.86622195]
[1693596161127,0.17318023,212.61,212.09,0.86622195]
[1693596161329,0.17318023,212.62,212.09,0.86622195]
[1693596161530,0.17318023,212.61,212.09,0.86622195]
[1693596161724,0.17318023,212.62,212.09,0.86622195]
[1693596161924,0.17318023,212.61,212.09,0.86622195]
[1693596162128,0.17318023,212.62,212.09,0.94291454]
[1693596162324,0.17318023,212.61,212.1,0.86622195]
[1693596162529,0.17318023,212.62,212.1,0.86622195]
[1693596162726,0.17318023,212.61,212.1,0.86622195]
[1693596162932,0.17318023,212.6,212.1,0.86622195]
[1693596163132,0.17318023,212.59,212.1,0.86622195]
[1693596163432,0.17318023,212.58,212.1,0.86622195]
[1693596163633,0.17318023,212.62,212.1,0.86622195]
[1693596163931,0.17318023,212.61,212.1,0.86622195]
[1693596164134,5.31969532,212.62,212.1,0.86622195]
[1693596164332,0.17318023,212.61,212.1,0.86622195]
[1693596165033,0.17318023,212.61,212.1,0.94291454]
[1693596165227,0.17318023,212.61,212.11,0.86622195]
[1693596166333,5.31969532,212.61,212.11,0.86622195]
[1693596166536,0.17318023,212.6,212.11,0.86622195]
[1693596167933,0.17318023,212.6,212.11,0.94291454]
[1693596168134,0.17318023,212.6,212.12,0.86622195]
[1693596168936,5.14651509,212.59,212.12,0.86622195]
[1693596169138,0.17318023,212.58,212.12,0.86622195]
[1693596169934,0.17318023,212.58,212.12,0.94291454]
[1693596170133,0.17318023,212.58,212.13,0.86622195]
[1693596171736,5.31969532,212.58,212.13,0.94291454]
[1693596171933,0.17318023,212.57,212.13,0.07669259]
[1693596172942,0.17318023,212.57,212.15,0.07669259]
[1693596173143,5.14651509,212.56,212.15,0.07669259]
[1693596173342,0.17318023,212.55,212.15,0.07669259]
[1693596173735,0.17318023,212.55,212.14,0.07669259]
[1693596174940,5.31969532,212.55,212.14,0.07669259]
[1693596175142,0.17318023,212.54,212.14,0.07669259]
[1693596175950,0.17318023,212.53,212.14,0.07669259]
[1693596176150,0.17318023,212.52,212.14,0.07669259]
[1693596176351,0.17318023,212.54,212.14,0.07669259]
[1693596176546,0.17318023,212.53,212.14,0.07669259]
[1693596176751,0.17318023,212.52,212.14,0.07669259]
[1693596176953,0.17318023,212.51,212.14,0.07669259]
[1693596177149,0.17318023,212.54,212.14,0.07669259]
[1693596177354,0.17318023,212.53,212.14,0.07669259]
[1693596177549,0.17318023,212.52,212.14,0.07669259]
[1693596177755,0.17318023,212.51,212.14,0.07669259]
[1693596177949,0.17318023,212.5,212.14,0.07669259]
[1693596178152,0.17318023,212.54,212.14,0.07669259]
[1693596178355,0.17318023,212.53,212.14,0.07669259]
[1693596178555,0.17318023,212.52,212.14,0.07669259]
[1693596178750,0.17318023,212.51,212.14,0.07669259]
[1693596178950,5.14651509,212.55,212.14,0.07669259]
[1693596178951,0.17318023,212.5,212.14,0.07669259]
[1693596179150,0.17318023,212.54,212.14,0.07669259]
[1693596179352,0.17318023,212.53,212.14,0.07669259]
[1693596179557,0.17318023,212.52,212.14,0.07669259]
[1693596179756,0.17318023,212.51,212.14,0.07669259]
[1693596179957,0.17318023,212.54,212.14,0.07669259]
[1693596180257,0.17318023,212.53,212.14,0.07669259]
[1693596180460,0.17318023,212.54,212.14,0.07669259]
[1693596180652,0.17318023,212.53,212.14,0.07669259]
[1693596180855,0.17318023,212.52,212.14,0.07669259]
[1693596181153,0.17318023,212.51,212.14,0.07669259]
[1693596181354,0.17318023,212.55,212.14,0.07669259]
[1693596181555,0.17318023,212.54,212.14,0.07669259]
[1693596181757,0.17318023,212.53,212.13,0.07669259]
[1693596181958,0.17318023,212.52,212.13,0.07669259]
[1693596182152,0.17318023,212.54,212.13,0.07669259]
[1693596182351,0.17318023,212.53,212.13,0.07669259]
[1693596182555,0.17318023,212.52,212.13,0.07669259]
[1693596182754,0.17318023,212.54,212.13,0.07669259]
[1693596182954,0.17318023,212.53,212.13,0.07669259]
[1693596183154,0.17318023,212.52,212.13,0.07669259]
[1693596183357,0.17318023,212.51,212.13,0.07669259]
[1693596183657,0.17318023,212.5,212.13,0.07669259]
[1693596183856,0.17318023,212.49,212.13,0.07669259]
[1693596184053,0.17318023,212.53,212.13,0.07669259]
[1693596184354,0.17318023,212.52,212.13,0.07669259]
[1693596184553,0.17318023,212.53,212.13,0.07669259]
[1693596184759,0.17318023,212.52,212.13,0.07669259]
[1693596184954,0.17318023,212.51,212.13,0.07669259]
[1693596185159,0.17318023,212.53,212.13,0.07669259]
[1693596185361,0.17318023,212.52,212.13,0.07669259]
[1693596185553,0.17318023,212.51,212.13,0.07669259]
[1693596185758,0.17318023,212.5,212.13,0.07669259]
[1693596185958,0.17318023,212.49,212.13,0.07669259]
[1693596186161,0.17318023,212.48,212.13,0.07669259]
[1693596186361,0.17318023,212.53,212.13,0.07669259]
[1693596186559,0.17318023,212.52,212.13,0.07669259]
[1693596186760,0.17318023,212.53,212.13,0.07669259]
[1693596187062,0.17318023,212.52,212.13,0.07669259]
[1693596187260,5.14651509,212.54,212.13,0.07669259]
[1693596187261,0.17318023,212.51,212.13,0.07669259]
[1693596187462,0.17318023,212.5,212.13,0.07669259]
[1693596187663,0.17318023,212.49,212.13,0.07669259]
[1693596187861,0.17318023,212.48,212.13,0.07669259]
[1693596188163,0.17318023,212.47,212.13,0.07669259]
[1693596188364,0.17318023,212.53,212.13,0.07669259]
[1693596188663,0.17318023,212.52,212.12,0.07669259]
[1693596188863,0.17318023,212.53,212.12,0.07669259]
[1693596189855,5.31969532,212.53,212.12,0.07669259]
[1693596190061,0.17318023,212.52,212.12,0.07669259]
[1693596190963,0.17318023,212.52,212.13,0.07669259]
[1693596203469,0.17318023,212.52,212.14,0.07669259]
[1693596205270,0.17318023,212.52,212.08,0.15338519]
[1693596205271,0.17318023,212.52,212.15,0.07669259]
[1693596205472,0.17318023,212.53,212.15,0.07669259]
[1693596205671,0.17318023,212.52,212.15,0.07669259]
[1693596205970,0.17318023,212.51,212.15,0.07669259]
[1693596206171,0.17318023,212.5,212.15,0.07669259]
[1693596206372,0.17318023,212.53,212.15,0.07669259]
[1693596206572,0.17318023,212.52,212.15,0.07669259]
[1693596206773,0.17318023,212.51,212.15,0.07669259]
[1693596207074,0.17318023,212.5,212.19,0.07669259]
[1693596207271,0.17318023,212.49,212.19,0.07669259]
[1693596207478,0.17318023,212.58,212.2,0.07669259]
[1693596207794,0.17318308,212.57,212.2,0.07669259]
[1693596207973,0.17318308,212.59,212.18,0.07669259]
[1693596208175,0.17318308,212.58,212.18,0.07669259]
[1693596208473,0.17318308,212.57,212.18,0.07669259]
[1693596208672,0.17318308,212.56,212.18,0.07669259]
[1693596208974,0.17318308,212.56,211.95,1.02256798]
[1693596208975,0.17318308,212.55,212.17,0.07669259]
[1693596209169,0.17318308,212.54,212.18,0.86591432]
[1693596209373,0.17318308,212.53,212.18,0.86591432]
[1693596209675,0.17318308,212.52,212.18,0.86591432]
[1693596209875,0.17318308,212.51,212.16,0.07669259]
[1693596210075,0.17318308,212.62,212.17,0.86591859]
[1693596210274,0.17318308,212.61,212.17,0.86591859]
[1693596210468,0.17318308,212.6,212.17,0.86591859]
[1693596210672,0.17318308,212.59,212.17,0.86591859]
[1693596210872,0.17318308,212.63,212.17,0.86591859]
[1693596211075,0.17318308,212.63,212.15,0.07669259]
[1693596211076,0.17318308,212.62,212.18,0.86591859]
[1693596211275,0.17318308,212.64,212.16,0.86591859]
[1693596211476,0.17318308,212.63,212.17,0.86591772]
[1693596211677,5.14651509,212.65,212.18,0.86591772]
[1693596211678,0.17318308,212.62,212.18,0.86591772]
[1693596211868,0.17318308,212.61,212.14,0.07669259]
[1693596212069,0.17318308,212.6,212.15,0.86591991]
[1693596212273,0.17318308,212.59,212.15,0.86591991]
[1693596212473,0.17318308,212.65,212.15,0.9426125]
[1693596212669,0.17318308,212.64,212.16,0.86591991]
[1693596212870,0.17318308,212.63,212.16,0.86591991]
[1693596213170,0.17318308,212.62,212.16,0.86591991]
[1693596213476,0.17318308,212.61,212.17,0.86591991]
[1693596213677,0.17318308,212.61,212.14,0.07669259]
[1693596213678,0.17318308,212.66,212.15,0.86591991]
[1693596213879,0.17318308,212.65,212.16,0.86591991]
[1693596214076,0.17318308,212.64,212.17,0.86591991]
[1693596214276,0.17318308,212.66,212.15,0.86591991]
[1693596214472,0.17318308,212.65,212.16,0.86591991]
[1693596214774,0.17318308,212.64,212.17,0.86591991]
[1693596214973,0.17318308,212.67,212.15,0.86591991]
[1693596215180,0.17318308,212.66,212.16,0.86591991]
[1693596215370,0.17318308,212.67,212.15,0.86591991]
[1693596215572,0.17318308,212.66,212.16,0.86591991]
[1693596215776,0.17318308,212.67,212.17,0.86591991]
[1693596215979,0.17318308,212.66,212.18,0.86591991]
[1693596216178,0.17318308,212.65,212.19,0.86591991]
[1693596216373,0.17318308,212.68,212.13,0.07669259]
[1693596216680,0.17318308,212.67,212.14,0.86591743]
[1693596216880,0.17318308,212.68,212.14,0.86591743]
[1693596217078,0.17318308,212.67,212.14,0.86591743]
[1693596217378,0.17318308,212.66,212.14,0.86591743]
[1693596217579,0.17318308,212.65,212.14,0.86591743]
[1693596217780,0.17318308,212.68,212.14,0.86591743]
[1693596217979,0.17318308,212.67,212.14,0.86591743]
[1693596218179,0.17318308,212.68,212.14,0.86591743]
[1693596218482,0.17318308,212.67,212.14,0.86591743]
[1693596218779,0.17318308,212.66,212.14,0.86591743]
[1693596219080,0.17318308,212.65,212.14,0.86591743]
[1693596219283,0.17318308,212.64,212.14,0.86591743]
[1693596219475,0.17318308,212.63,212.14,0.86591743]
[1693596219780,0.17318308,212.62,212.14,0.86591743]
[1693596219979,0.17318308,212.69,212.14,0.86591743]
[1693596220180,0.17318308,212.68,212.14,0.86591743]
[1693596220379,0.17318308,212.67,212.14,0.86591743]
[1693596220579,0.17318308,212.69,212.14,0.86591743]
[1693596220776,0.17318308,212.68,212.14,0.86591743]
[1693596220983,0.17318308,212.69,212.14,0.86591743]
[1693596221180,5.14651509,212.7,212.14,0.86591743]
[1693596221181,0.17318308,212.68,212.14,0.86591743]
[1693596221381,0.17318308,212.69,212.14,0.86591743]
[1693596221580,5.14651509,212.7,212.14,0.86591743]
[1693596221581,0.17318308,212.68,212.14,0.86591743]
[1693596221781,0.17318308,212.69,212.14,0.86591743]
[1693596221983,0.17318308,212.68,212.14,0.86591743]
[1693596222180,0.17318308,212.69,212.14,0.86591743]
[1693596222380,0.17318308,212.68,212.14,0.86591743]
[1693596222581,0.17318308,212.69,212.14,0.86591743]
[1693596223278,0.17318308,212.69,212.14,0.94261002]
[1693596223483,0.17318308,212.69,212.15,0.86591743]
[1693596230891,0.17318308,212.69,212.15,0.94261002]
[1693596231092,0.17318308,212.69,212.16,0.86591743]
[1693596233994,5.31969817,212.69,212.16,0.94261002]
[1693596234289,5.31969817,212.69,212.17,0.86591743]
[1693596234890,5.14651509,212.68,212.17,0.86591743]
[1693596235195,5.31969817,212.69,212.17,0.94261002]
[1693596235493,5.31969817,212.69,212.18,0.86591743]
[1693596236492,5.14651509,212.68,212.18,0.86591743]
[1693596236998,5.14651509,212.68,212.18,0.94261002]
[1693596237196,5.14651509,212.68,212.19,0.86591743]
[1693596237698,0.17318157,212.67,212.19,0.86591743]
[1693596237899,5.31969666,212.67,212.19,0.94261002]
[1693596238098,0.17318157,212.66,212.2,0.86590263]
[1693596238894,5.31969666,212.66,212.2,0.94259522]
[1693596239098,0.17318157,212.65,212.2,0.07669259]
[1693596239999,5.31969666,212.65,212.22,0.07669259]
[1693596240198,0.17318157,212.64,212.22,0.07669259]
[1693596240401,0.17318157,212.63,212.22,0.07669259]
[1693596240593,0.17318157,212.62,212.22,0.07669259]
[1693596240797,0.17318157,212.61,212.22,0.07669259]
[1693596240996,0.17318157,212.6,212.23,0.07669259]
[1693596241195,0.17318157,212.59,212.23,0.07669259]
[1693596241393,0.17318157,212.58,212.23,0.07669259]
[1693596241593,0.17318157,212.57,212.23,0.07669259]
[1693596241798,0.17318157,212.56,212.23,0.07669259]
[1693596242000,0.17318157,212.55,212.25,0.07669259]
[1693596242301,0.17318157,212.54,212.25,0.07669259]
[1693596242496,0.17318157,212.53,212.25,0.07669259]
[1693596242798,5.14651509,212.65,212.25,0.07669259]
[1693596242994,0.17317224,212.64,212.25,0.07669259]
[1693596243594,0.17317224,212.64,212.24,0.07669259]
[1693596243793,5.31968733,212.64,212.24,0.07669259]
[1693596243996,0.17317224,212.63,212.24,0.07669259]
[1693596246802,0.17317224,212.63,212.1,3.74529457]
[1693596247102,0.17317224,212.62,212.24,0.07668243]
[1693596247298,5.14980953,212.64,212.24,0.07668243]
[1693596247299,0.17317224,212.63,212.24,0.07668243]
[1693596247503,0.17317224,212.62,212.24,0.07668243]
[1693596247702,7.20973334,212.67,212.24,0.07668243]
[1693596247703,0.17317224,212.61,212.24,0.07668243]
[1693596247898,0.17317224,212.6,212.24,0.07668243]
[1693596248104,0.17317224,212.64,212.24,0.07668243]
[1693596248303,0.17317224,212.63,212.24,0.07668243]
[1693596248604,0.17317224,212.62,212.24,0.07668243]
[1693596248902,0.17317224,212.61,212.24,0.07668243]
[1693596249203,0.17317224,212.6,212.24,0.07668243]
[1693596249402,0.17317224,212.64,212.24,0.07668243]
[1693596249602,0.17317224,212.63,212.24,0.07668243]
[1693596249798,0.17317224,212.62,212.23,0.07668243]
[1693596250000,0.17317224,212.64,212.23,0.07668243]
[1693596250200,0.17317224,212.63,212.23,0.07668243]
[1693596250502,0.17317224,212.62,212.23,0.07668243]
[1693596250704,0.17317224,212.61,212.23,0.07668243]
[1693596250998,0.17317224,212.6,212.24,0.07668243]
[1693596251195,0.17317224,212.65,212.25,0.07668243]
[1693596251401,0.17317224,212.64,212.25,0.07668243]
[1693596251601,0.17317224,212.63,212.25,0.07668243]
[1693596251802,0.17317224,212.62,212.25,0.07668243]
[1693596251997,0.17317224,212.65,212.24,0.07668243]
[1693596252201,0.17317224,212.64,212.24,0.07668243]
[1693596252507,0.17317224,212.63,212.24,0.07668243]
[1693596252797,0.17317224,212.62,212.24,0.07668243]
[1693596253003,5.14980953,212.66,212.24,0.07668243]
[1693596253004,0.17317224,212.61,212.24,0.07668243]
[1693596253198,0.17317224,212.6,212.24,0.07668243]
[1693596253398,0.17317224,212.65,212.24,0.07668243]
[1693596253598,0.17317224,212.64,212.24,0.07668243]
[1693596253805,0.17317224,212.63,212.24,0.07668243]
[1693596253996,0.17317224,212.62,212.24,0.07668243]
[1693596254198,0.17317224,212.61,212.24,0.07668243]
[1693596254396,0.17317224,212.6,212.24,0.07668243]
[1693596254599,0.17317224,212.59,212.24,0.07668243]
[1693596254802,0.17317224,212.58,212.23,0.07668243]
[1693596255006,0.17317224,212.65,212.23,0.07668243]
[1693596255202,0.17317224,212.64,212.23,0.07668243]
[1693596255398,0.17317224,212.63,212.23,0.07668243]
[1693596255597,0.17317224,212.65,212.23,0.07668243]
[1693596255801,0.17317224,212.64,212.23,0.07668243]
[1693596256001,0.17317224,212.63,212.23,0.07668243]
[1693596256301,0.17317224,212.62,212.23,0.07668243]
[1693596256502,0.17317224,212.61,212.23,0.07668243]
[1693596256702,0.17317224,212.65,212.23,0.07668243]
[1693596256898,0.17317224,212.64,212.22,0.07668243]
[1693596257098,0.17317224,212.63,212.22,0.07668243]
[1693596257301,0.17317224,212.65,212.22,0.07668243]
[1693596257503,0.17317224,212.64,212.23,0.07668243]
[1693596257704,0.17317224,212.63,212.23,0.07668243]
[1693596257898,0.17317224,212.62,212.22,0.07668243]
[1693596258103,0.17317224,212.65,212.22,0.07668243]
[1693596258297,0.17317224,212.64,212.22,0.07668243]
[1693596258498,0.17317224,212.63,212.22,0.07668243]
[1693596258803,0.17317224,212.62,212.22,0.07668243]
[1693596258997,0.17317224,212.61,212.22,0.07668243]
[1693596259198,0.17317224,212.6,212.22,0.07668243]
[1693596259399,0.17317224,212.59,212.22,0.07668243]
[1693596259599,0.17317224,212.58,212.22,0.07668243]
[1693596259906,0.17317224,212.57,212.21,0.07668243]
[1693596260206,0.17317224,212.56,212.22,0.86584297]
[1693596260407,0.17317224,212.55,212.21,0.07668243]
[1693596260607,5.14980953,212.65,212.21,0.07668243]
[1693596260608,0.17317224,212.54,212.21,0.07668243]
[1693596260806,0.17317224,212.53,212.22,0.86583863]
[1693596261007,5.14980953,212.65,212.22,0.86583863]
[1693596261210,0.17316771,212.64,212.22,0.86583863]
[1693596261507,0.17316771,212.64,212.21,0.07668243]
[1693596262302,0.17316771,212.64,212.21,0.07500172]
[1693596263309,0.17316771,212.64,212.22,0.86583692]
[1693596263509,0.17316771,212.64,212.21,0.07500172]
[1693596263811,0.17316771,212.64,212.22,0.86583475]
[1693596264110,0.17316771,212.64,212.21,0.07500172]
[1693596264510,0.17316771,212.64,212.22,0.86583174]
[1693596264706,0.17316771,212.64,212.21,0.07500172]
[1693596264912,0.17316771,212.64,212.22,0.86583229]
[1693596265115,0.17316771,212.64,212.21,0.07500172]
[1693596265309,0.17316771,212.64,212.22,0.86583268]
[1693596265510,0.17316771,212.64,212.21,0.07500172]
[1693596266113,0.17316771,212.64,212.22,0.86583317]
[1693596266306,0.17316771,212.64,212.21,0.07500172]
[1693596266508,0.17316771,212.64,212.22,0.86583336]
[1693596267014,0.17316771,212.64,212.21,0.07500172]
[1693596267214,0.17316771,212.64,212.22,0.86583285]
[1693596267415,0.17316771,212.64,212.21,0.07500172]
[1693596269311,5.32297724,212.64,212.21,0.07500172]
[1693596269515,0.17316771,212.63,212.21,0.07500172]
[1693596269916,0.17316771,212.63,212.15,0.15336486]
[1693596270218,0.17316771,212.63,212.16,0.86582662]
[1693596271115,0.17316771,212.63,212.16,1.01919148]
[1693596271313,0.17316771,212.63,212.17,0.86582662]
[1693596271508,0.17316771,212.63,212.16,1.01919148]
[1693596271715,0.17316771,212.63,212.17,0.86582662]
[1693596272415,5.32297724,212.63,212.17,0.86582662]
[1693596272610,0.17316771,212.62,212.17,0.86582662]
[1693596272914,5.14980953,212.64,212.17,0.86582662]
[1693596272915,0.17316771,212.61,212.17,0.86582662]
[1693596273119,0.17316771,212.6,212.17,0.86582662]
[1693596273310,0.17316771,212.59,212.17,0.86582662]
[1693596273615,0.17316771,212.58,212.17,0.86582662]
[1693596273810,0.17316771,212.57,212.17,0.86582662]
[1693596274011,0.17316771,212.56,212.17,0.86582662]
[1693596274209,0.17316771,212.55,212.17,0.86582662]
[1693596274517,0.17316771,212.54,212.17,0.86582662]
[1693596274715,0.17316771,212.53,212.17,0.86582662]
[1693596275017,5.14980953,212.63,212.17,1.01919148]
[1693596275217,0.17316546,212.62,212.18,0.86582662]
[1693596276217,0.17316546,212.62,212.18,1.01919148]
[1693596276418,0.17316546,212.61,212.19,0.86582662]
[1693596276615,0.17316546,212.63,212.18,0.86582662]
[1693596276818,0.17316546,212.62,212.19,0.86582662]
[1693596277013,0.17316546,212.61,212.2,0.86582662]
[1693596277212,0.17316546,212.6,212.21,0.86582662]
[1693596277519,0.17316546,212.59,212.22,0.86582662]
[1693596277713,0.17316546,212.58,212.17,0.15336486]
[1693596277912,0.17316546,212.57,212.18,0.86580762]
[1693596278117,0.17316546,212.56,212.18,0.86580762]
[1693596278314,0.17316546,212.55,212.18,0.86580762]
[1693596278514,0.17316546,212.54,212.18,0.86580762]
[1693596278717,0.17316546,212.53,212.18,0.86580762]
[1693596278917,5.14980953,212.64,212.18,0.86580762]
[1693596279119,0.17316226,212.63,212.18,0.86580762]
[1693596281219,0.17316226,212.63,212.18,1.01917248]
[1693596281420,0.17316226,212.63,212.19,0.86580762]
[1693596283620,5.32297179,212.63,212.19,0.86580762]
[1693596283822,0.17316226,212.62,212.19,0.86580762]
[1693596288426,0.17316226,212.61,212.19,0.86580762]
[1693596288726,0.17316226,212.6,212.19,0.86580762]
[1693596288924,0.17316226,212.63,212.19,0.86580762]
[1693596289126,0.17316226,212.62,212.19,0.86580762]
[1693596289424,0.17316226,212.61,212.19,0.86580762]
[1693596289626,0.17316226,212.6,212.19,0.86580762]
[1693596289826,0.17316226,212.59,212.19,0.86580762]
[1693596290026,0.17316226,212.58,212.19,0.86580762]
[1693596290325,0.17316226,212.57,212.19,0.86580762]
[1693596290526,0.17316226,212.63,212.19,0.86580762]
[1693596290825,0.17316226,212.62,212.19,0.86580762]
[1693596291026,0.17316226,212.61,212.19,0.86580762]
[1693596291227,0.17316226,212.6,212.19,0.86580762]
[1693596291526,0.17316226,212.59,212.22,0.15336486]
[1693596291726,0.17316226,212.67,212.23,1.01917248]
[1693596292023,0.17311089,212.66,212.24,0.86580762]
[1693596292227,0.17311089,212.65,212.24,0.86580762]
[1693596292427,0.17311089,212.64,212.24,0.86580762]
[1693596292627,0.17311089,212.7,212.22,0.86580762]
[1693596292828,0.17311089,212.69,212.23,0.86580762]
[1693596293026,0.17311089,212.68,212.22,0.86580762]
[1693596293221,0.17311089,212.67,212.23,0.86580762]
[1693596293425,0.17311089,212.66,212.24,0.86580762]
[1693596293626,0.17311089,212.65,212.25,0.86580762]
[1693596293828,0.17311089,212.7,212.22,1.01917248]
[1693596294025,0.17311089,212.69,212.23,0.86580762]
[1693596294224,0.17311089,212.68,212.23,0.86580762]
[1693596294424,0.17311089,212.67,212.23,0.86580762]
[1693596294625,0.17311089,212.66,212.24,0.86580762]
[1693596294834,0.17311089,212.65,212.25,0.86580762]
[1693596295134,0.17311089,212.64,212.26,0.86580762]
[1693596295331,0.17311089,212.71,212.21,0.86580762]
[1693596295536,0.17311089,212.7,212.22,0.86580762]
[1693596295835,0.17311089,212.7,212.2,0.15336486]
[1693596295836,0.17311089,212.69,212.23,0.86580762]
[1693596296037,0.17311089,212.68,212.24,0.86580762]
[1693596296236,0.17311089,212.72,212.21,0.86580762]
[1693596296432,0.17311089,212.72,212.22,0.86580762]
[1693596296634,0.17311089,212.71,212.23,0.86580762]
[1693596296936,0.17311089,212.7,212.24,0.86580762]
[1693596297133,0.17311089,212.73,212.2,0.86580762]
[1693596297333,0.17311089,212.73,212.19,0.15313109]
[1693596297334,0.17311089,212.72,212.21,0.86580762]
[1693596297635,0.17311089,212.71,212.22,0.86580762]
[1693596297836,0.17311089,212.7,212.23,0.86580762]
[1693596298037,0.17311089,212.73,212.2,0.86580762]
[1693596298232,0.17311089,212.72,212.21,0.86580762]
[1693596298437,0.17311089,212.71,212.22,0.86580762]
[1693596298640,0.17311089,212.74,212.19,0.86580762]
[1693596298836,0.17311089,212.73,212.2,0.86580762]
[1693596299032,0.17311089,212.72,212.21,0.86580762]
[1693596299231,0.17311089,212.74,212.2,0.86580762]
[1693596299435,0.17311089,212.73,212.21,0.86580762]
[1693596299637,0.17311089,212.72,212.22,0.86580762]
[1693596299936,0.17311089,212.72,212.18,0.15313109]
[1693596299937,0.17311089,212.71,212.23,0.86580762]
[1693596300137,0.17311089,212.7,212.24,0.86580762]
[1693596300338,0.17311089,212.75,212.19,0.86580762]
[1693596300636,0.17311089,212.74,212.2,0.86580762]
[1693596300839,0.17311089,212.73,212.21,0.86580762]
[1693596301031,0.17311089,212.75,212.19,0.86580762]
[1693596301235,0.17311089,212.74,212.2,0.86580762]
[1693596301431,0.17311089,212.73,212.21,0.86580762]
[1693596301736,0.17311089,212.72,212.22,0.86580762]
[1693596301934,0.17311089,212.71,212.23,0.86580762]
[1693596302131,0.17311089,212.75,212.19,0.86580762]
[1693596302335,0.17311089,212.75,212.18,0.15313109]
[1693596302336,0.17311089,212.74,212.2,0.86580762]
[1693596302637,0.17311089,212.73,212.21,0.86580762]
[1693596302838,0.17311089,212.72,212.22,0.86580762]
[1693596303039,0.17311089,212.71,212.23,0.86580762]
[1693596303239,0.17311089,212.7,212.18,0.86580762]
[1693596303539,0.17311089,212.69,212.19,0.86580762]
[1693596303739,0.17311089,212.68,212.2,0.86580762]
[1693596304040,0.17311089,212.67,212.21,0.86580762]
[1693596304240,0.17311089,212.66,212.22,0.86580762]
[1693596304433,0.17311089,212.65,212.23,0.86580762]
[1693596304633,0.17311089,212.64,212.24,0.86580762]
[1693596304837,0.17311089,212.64,212.17,0.15313109]
[1693596304838,0.17311089,212.63,212.25,0.86580762]
[1693596305038,0.17311089,212.62,212.26,0.86580762]
[1693596305240,0.17311089,212.75,212.18,0.86580762]
[1693596305537,0.17311089,212.74,212.19,0.86580762]
[1693596305740,0.17311089,212.73,212.2,0.86580762]
[1693596306040,0.17311089,212.72,212.21,0.86580762]
[1693596306339,0.17311089,212.71,212.22,0.86580762]
[1693596306638,0.17311089,212.7,212.23,0.86580762]
[1693596306941,0.17311089,212.69,212.24,0.86580762]
[1693596307138,0.17311089,212.75,212.25,0.86580762]
[1693596307441,0.17311089,212.74,212.26,0.86580762]
[1693596307643,0.17311089,212.73,212.27,0.86580762]
[1693596307840,0.17311089,212.72,212.28,0.86580762]
[1693596308041,0.17311089,212.76,212.18,0.86580762]
[1693596308237,0.17311089,212.75,212.17,0.15313109]
[1693596308436,5.13727283,212.77,212.18,0.86554056]
[1693596308437,0.17311089,212.74,212.18,0.86554056]
[1693596308637,0.17311089,212.73,212.18,1.01867165]
[1693596308838,0.17311089,212.72,212.19,0.86554056]
[1693596309040,0.17311089,212.76,212.19,0.86554056]
[1693596309239,0.17311089,212.75,212.19,0.86554056]
[1693596309440,5.13727283,212.77,212.19,0.86554056]
[1693596309441,0.17311089,212.74,212.19,0.86554056]
[1693596309641,0.17311089,212.73,212.19,0.86554056]
[1693596309835,0.17311089,212.72,212.19,0.86554056]
[1693596310039,0.17311089,212.76,212.19,0.86554056]
[1693596310243,0.17311089,212.75,212.19,0.86554056]
[1693596310444,0.17311089,212.76,212.19,0.86554056]
[1693596313142,0.17311089,212.77,212.19,0.86554056]
[1693596313343,0.17311089,212.76,212.19,0.86554056]